fUSD/lending_fUSD_20251017
["ID","MTS","AMOUNT","RATE_DAILY","PERIOD"]
[391709656,1760739048171,-151.0,0.00040941,14]
[391709657,1760739048180,-1000.0,0.00040941,14]
[391709658,1760739048189,-250.0,0.00040941,14]
[391709659,1760739048199,-370.91026638,0.00040941,14]
[391709660,1760739048208,-3000.0,0.00040941,14]
[391709661,1760739048218,-151.0,0.00040941,14]
[391709662,1760739048227,-3000.0,0.00040941,14]
[391709663,1760739048236,-384.63394623,0.00040941,14]
[391709664,1760739048246,-250.0,0.00040941,14]
[391709665,1760739048255,-1000.0,0.00040941,14]
[391709666,1760739048264,-151.0,0.00040941,14]
[391709667,1760739048273,-250.0,0.00040941,14]
[391709668,1760739048282,-398.86540225,0.00040941,14]
[391709669,1760739048292,-3000.0,0.00040941,14]
[391709670,1760739048301,-1000.0,0.00040941,14]
[391709671,1760739048310,-250.0,0.00040941,14]
[391709672,1760739048320,-1000.0,0.00040941,14]
[391709673,1760739048329,-1000.0,0.00040941,14]
[391709674,1760739048339,-1000.0,0.00040941,14]
[391709675,1760739048349,-1000.0,0.00040941,14]
[391709676,1760739048358,-1000.0,0.00040941,14]
[391709677,1760739048368,-250.0,0.00040941,14]
[391709678,1760739048377,-250.0,0.00040941,14]
[391709679,1760739048387,-250.0,0.00040941,14]
[391709680,1760739048396,-500.0,0.00040941,14]
[391709681,1760739048406,-250.0,0.00040941,14]
[391709682,1760739048415,-337.04050925,0.00040941,14]
[391709683,1760739048425,-500.0,0.00040941,14]
[391709684,1760739048435,-250.0,0.00040941,14]
[391709685,1760739048444,-250.0,0.00040941,14]
[391709686,1760739048453,-500.0,0.00040941,14]
[391709687,1760739048463,-250.0,0.00040941,14]
[391709688,1760739048472,-500.0,0.00040941,14]
[391709689,1760739048482,-250.0,0.00040941,14]
[391709690,1760739048491,-500.0,0.00040941,14]
[391709691,1760739048500,-250.0,0.00040941,14]
[391709692,1760739048510,-500.0,0.00040941,14]
[391709693,1760739048519,-250.0,0.00040941,14]
[391709694,1760739048529,-500.0,0.00040941,14]
[391709695,1760739048539,-250.0,0.00040941,14]
[391709696,1760739048548,-500.0,0.00040941,14]
[391709697,1760739048558,-500.0,0.00040941,14]
[391709698,1760739048568,-500.0,0.00040941,14]
[391709699,1760739048577,-500.0,0.00040941,14]
[391709700,1760739048586,-693.3919763,0.00040941,14]
[391709701,1760739048596,-719.04747942,0.00040941,14]
[391709702,1760739048606,-642.99635445,0.00040941,14]
[391709703,1760739048616,-239.79609754,0.00040941,14]
[391709704,1760739048625,-500.0,0.00040943,2]
[391709705,1760739048634,-500.0,0.00040944,17]
[391709706,1760739048644,-200.0,0.00040945,7]
[391709707,1760739048654,-280.86508197,0.00040945,2]
[391709708,1760739048663,-200.0,0.00040945,7]
[391709709,1760739048673,-151.0,0.00040945,2]
[391709710,1760739048682,-403.28672,0.00040945,6]
[391709711,1760739048691,-403.28673,0.00040945,6]
[391709712,1760739048700,-403.28672,0.00040945,6]
[391709713,1760739048709,-403.28672,0.00040945,6]
[391709714,1760739048719,-403.28672,0.00040945,6]
[391709715,1760739048728,-403.28672,0.00040945,6]
[391709716,1760739048737,-2216.14701,0.00040945,6]
[391709717,1760739048746,-150.0,0.00040951,7]
[391709718,1760739048756,-150.0,0.00040965,7]
[391709719,1760739048766,-150.0,0.00040966,7]
[391709720,1760739048776,-548.0,0.00040972,2]
[391709721,1760739048785,-500.0,0.00040973,5]
[391709722,1760739048794,-500.40266672,0.00040973,2]
[391709723,1760739048804,-500.0,0.00040973,5]
[391709724,1760739048813,-167.42568727,0.00040974,7]
[391709725,1760739048823,-321.39517214,0.00040974,7]
[391709726,1760739048832,-150.0,0.00040988,7]
[391709727,1760739048843,-150.0,0.0004099,7]
[391709728,1760739048853,-154.0,0.00041,120]
[391709729,1760739048862,-169.0,0.00041,90]
[391709730,1760739048872,-1034.27992314,0.00041006,36]
[391709731,1760739048882,-480.0,0.00041018,2]
[391709732,1760739048928,-150.0,0.0004102,7]
[391709733,1760739048938,-167.42568727,0.0004102,7]
[391709734,1760739048952,-321.39517214,0.0004102,7]
[391709735,1760739048962,-548.0,0.00041027,2]
[391709736,1760739048971,-150.0,0.00041034,7]
[391709737,1760739048980,-150.0,0.00041041,7]
[391709738,1760739048990,-4270.55329872,0.00041045,120]
[391709739,1760739048999,-150.0,0.00041047,7]
[391709740,1760739049008,-150.0,0.0004105,7]
[391709741,1760739049017,-167.42568727,0.00041066,7]
[391709742,1760739049028,-321.39517214,0.00041066,7]
[391709743,1760739049037,-150.0,0.00041071,7]
[391709744,1760739049046,-548.0,0.00041082,2]
[391709745,1760739049055,-150.0,0.00041089,7]
[391709746,1760739049064,-150.0,0.00041093,7]
[391709747,1760739049073,-5708.25,0.00041095,7]
[391709748,1760739049083,-500.0,0.00041096,30]
[391709749,1760739049092,-500.0,0.00041096,30]
[391709750,1760739049101,-500.0,0.00041096,30]
[391709751,1760739049110,-500.0,0.00041096,30]
[391709752,1760739049119,-500.0,0.00041096,30]
[391709753,1760739049128,-500.0,0.00041096,30]
[391709754,1760739049138,-500.0,0.00041096,30]
[391709755,1760739049147,-500.0,0.00041096,30]
[391709756,1760739049156,-500.0,0.00041096,30]
[391709757,1760739049165,-500.0,0.00041096,30]
[391709758,1760739049174,-500.0,0.00041096,30]
[391709759,1760739049183,-500.0,0.00041096,30]
[391709760,1760739049192,-500.0,0.00041096,30]
[391709761,1760739049201,-500.0,0.00041096,30]
[391709762,1760739049211,-500.0,0.00041096,30]
[391709763,1760739049220,-500.0,0.00041096,30]
[391709764,1760739049239,-500.0,0.00041096,30]
[391709765,1760739049254,-500.0,0.00041096,30]
[391709766,1760739049264,-500.0,0.00041096,30]
[391709767,1760739049273,-500.0,0.00041096,30]
[391709768,1760739049282,-2708.06,0.00041096,30]
[391709769,1760739049291,-489.0,0.00041096,2]
[391709770,1760739049300,-150.0,0.00041098,30]
[391709771,1760739049310,-500.0,0.000411,2]
[391709772,1760739049319,-1200.0,0.000411,2]
[391709773,1760739049327,-578.0,0.000411,2]
[391709774,1760739049337,-250.0,0.000411,2]
[391709775,1760739049347,-1200.0,0.000411,2]
[391709776,1760739049356,-563.0,0.000411,2]
[391709777,1760739049365,-167.42568727,0.00041112,30]
[391709778,1760739049374,-321.39517214,0.00041112,30]
[391709779,1760739049383,-150.0,0.00041121,30]
[391709780,1760739049392,-2957.0,0.00041123,7]
[391709781,1760739049401,-150.0,0.0004113,30]
[391709782,1760739049410,-150.0,0.00041135,30]
[391709783,1760739049420,-548.0,0.00041137,2]
[391709784,1760739049429,-150.0,0.00041146,30]
[391709785,1760739049439,-150.0,0.00041149,30]
[391709786,1760739049449,-489.0,0.00041151,2]
[391709787,1760739049458,-150.0,0.00041157,30]
[391709788,1760739049468,-167.42568727,0.00041157,30]
[391709789,1760739049477,-321.39517214,0.00041157,30]
[391709790,1760739049486,-150.0,0.00041185,30]
[391709791,1760739049495,-548.0,0.00041191,2]
[391709792,1760739049504,-150.0,0.00041199,30]
[391709793,1760739049514,-167.42568727,0.00041203,30]
[391709794,1760739049523,-321.39517214,0.00041203,30]
[391709795,1760739049532,-489.0,0.00041206,2]
[391709796,1760739049541,-150.0,0.00041207,30]
[391709797,1760739049551,-150.0,0.00041213,30]
[391709798,1760739049561,-150.0,0.00041219,30]
[391709799,1760739049570,-150.0,0.00041226,30]
[391709800,1760739049579,-548.0,0.00041246,2]
[391709801,1760739049589,-167.42568727,0.00041249,30]
[391709802,1760739049598,-321.39517214,0.00041249,30]
[391709803,1760739049607,-150.0,0.00041252,30]
[391709804,1760739049616,-489.0,0.0004126,2]
[391709805,1760739049625,-150.0,0.00041261,30]
[391709806,1760739049634,-1376.0,0.00041291,30]
[391709807,1760739049643,-150.0,0.00041295,30]
[391709808,1760739049652,-167.42568727,0.00041295,30]
[391709809,1760739049661,-150.0,0.00041295,30]
[391709810,1760739049671,-321.39517214,0.00041295,30]
[391709811,1760739049680,-548.0,0.00041301,2]
[391709812,1760739049689,-150.0,0.00041303,30]
[391709813,1760739049698,-150.0,0.00041305,30]
[391709814,1760739049707,-150.0,0.00041315,30]
[391709815,1760739049716,-10733.0,0.00041315,120]
[391709816,1760739049725,-489.0,0.00041315,2]
[391709817,1760739049734,-2216.14701,0.0004133,8]
[391709818,1760739049743,-500.0,0.00041332,2]
[391709819,1760739049752,-5000.0,0.00041333,4]
[391709820,1760739049761,-150.0,0.00041336,30]
[391709821,1760739049770,-167.42568727,0.00041341,30]
[391709822,1760739049779,-321.39517214,0.00041341,30]
[391709823,1760739049788,-318.62535146,0.0004135,120]
[391709824,1760739049798,-200.0,0.00041354,7]
[391709825,1760739049807,-200.0,0.00041354,7]
[391709826,1760739049815,-548.0,0.00041356,2]
[391709827,1760739049825,-150.0,0.00041358,30]
[391709828,1760739049833,-150.0,0.0004136,30]
[391709829,1760739049842,-150.0,0.00041364,30]
[391709830,1760739049852,-489.0,0.0004137,2]
[391709831,1760739049861,-150.0,0.00041378,30]
[391709832,1760739049871,-167.42568727,0.00041387,30]
[391709833,1760739049880,-321.39517214,0.00041387,30]
[391709834,1760739049889,-150.0,0.00041387,30]
[391709835,1760739049899,-150.0,0.00041387,30]
[391709836,1760739049907,-150.0,0.0004141,30]
[391709837,1760739049916,-548.0,0.00041411,2]
[391709838,1760739049926,-150.0,0.00041417,30]
[391709839,1760739049935,-150.0,0.00041423,30]
[391709840,1760739049948,-489.0,0.00041425,2]
[391709841,1760739049957,-150.0,0.00041433,30]
[391709842,1760739049966,-167.42568727,0.00041433,30]
[391709843,1760739049976,-321.39517214,0.00041433,30]
[391709844,1760739049986,-10000.0,0.00041443,60]
[391709845,1760739049995,-500.0,0.00041443,120]
[391709846,1760739050004,-500.0,0.00041443,17]
[391709847,1760739050014,-500.0,0.00041443,17]
[391709848,1760739050023,-216388.9372,0.00041444,7]
[391709849,1760739050032,-150.0,0.0004145,30]
[391709850,1760739050042,-150.0,0.0004145,30]
[391709851,1760739050051,-150.0,0.0004146,30]
[391709852,1760739050060,-150.0,0.00041463,30]
[391709853,1760739050069,-150.0,0.00041471,30]
[391709854,1760739050078,-150.0,0.00041473,10]
[391709855,1760739050087,-167.42568727,0.00041479,30]
[391709856,1760739050096,-321.39517214,0.00041479,30]
[391709857,1760739050106,-500.0,0.00041479,2]
[391709858,1760739050115,-489.0,0.0004148,2]
[391709859,1760739050124,-150.0,0.00041488,30]
[391709860,1760739050133,-428.4651,0.000415,7]
[391709861,1760739050143,-150.0,0.00041502,30]
[391709862,1760739050152,-150.0,0.00041516,30]
[391709863,1760739050163,-167.42568727,0.00041525,30]
[391709864,1760739050172,-321.39517214,0.00041525,30]
[391709865,1760739050181,-150.0,0.00041531,30]
[391709866,1760739050190,-489.0,0.00041534,2]
[391709867,1760739050200,-150.0,0.00041543,30]
[391709868,1760739050209,-150.0,0.00041555,30]
[391709869,1760739050218,-55555.0,0.00041562,60]
[391709870,1760739050228,-150.0,0.00041569,30]
[391709871,1760739050238,-150.0,0.0004157,30]
[391709872,1760739050247,-167.42568727,0.0004157,30]
[391709873,1760739050261,-321.39517214,0.0004157,30]
[391709874,1760739050270,-452.4026086,0.00041584,4]
[391709875,1760739050279,-489.0,0.00041589,2]
[391709876,1760739050289,-150.0,0.00041599,30]
[391709877,1760739050299,-167.42568727,0.00041616,30]
[391709878,1760739050308,-321.39517214,0.00041616,30]
[391709879,1760739050318,-150.0,0.00041622,30]
[391709880,1760739050327,-150.0,0.00041626,30]
[391709881,1760739050337,-150.0,0.00041639,30]
[391709882,1760739050346,-150.0,0.00041639,30]
[391709883,1760739050356,-150.0,0.00041639,30]
[391709884,1760739050365,-150.0,0.00041639,30]
[391709885,1760739050375,-150.0,0.00041639,30]
[391709886,1760739050384,-489.0,0.00041644,2]
[391709887,1760739050393,-167.42568727,0.00041662,30]
[391709888,1760739050403,-321.39517214,0.00041662,30]
[391709889,1760739050412,-150.0,0.00041674,30]
[391709890,1760739050421,-150.0,0.00041684,30]
[391709891,1760739050431,-972.3294035,0.00041684,2]
[391709892,1760739050441,-489.0,0.00041699,2]
[391709893,1760739050450,-150.0,0.00041708,30]
[391709894,1760739050460,-167.42568727,0.00041708,30]
[391709895,1760739050469,-150.0,0.00041708,30]
[391709896,1760739050479,-321.39517214,0.00041708,30]
[391709897,1760739050488,-1376.0,0.00041713,30]
[391709898,1760739050499,-150.0,0.00041723,30]
[391709899,1760739050508,-150.0,0.00041727,30]
[391709900,1760739050518,-150.0,0.00041747,30]
[391709901,1760739050527,-489.0,0.00041754,2]
[391709902,1760739050536,-167.42568727,0.00041754,30]
[391709903,1760739050545,-321.39517214,0.00041754,30]
[391709904,1760739050555,-200.0,0.00041768,7]
[391709905,1760739050565,-156.055358,0.00041768,120]
[391709906,1760739050575,-156.055358,0.00041768,120]
[391709907,1760739050584,-156.055358,0.00041768,120]
[391709908,1760739050594,-156.055358,0.00041768,120]
[391709909,1760739050604,-151.0,0.00041768,120]
[391709910,1760739050613,-151.0,0.00041768,120]
[391709911,1760739050622,-151.0,0.00041768,120]
[391709912,1760739050631,-151.0,0.00041768,120]
[391709913,1760739050641,-151.578571,0.00041768,120]
[391709914,1760739050650,-151.0,0.00041768,120]
[391709915,1760739050660,-151.0,0.00041768,120]
[391709916,1760739050670,-151.0,0.00041768,120]
[391709917,1760739050679,-151.0,0.00041768,120]
[391709918,1760739050689,-151.0,0.00041768,120]
[391709919,1760739050699,-151.0,0.00041768,120]
[391709920,1760739050708,-200.0,0.00041768,7]
[391709921,1760739050718,-150.0,0.00041777,30]
[391709922,1760739050727,-150.0,0.0004178,30]
[391709923,1760739050736,-150.0,0.00041791,30]
[391709924,1760739050745,-150.0,0.00041791,30]
[391709925,1760739050755,-150.0,0.00041791,30]
[391709926,1760739050764,-167.42568727,0.000418,30]
[391709927,1760739050773,-321.39517214,0.000418,30]
[391709928,1760739050783,-153.0,0.000418,120]
[391709929,1760739050792,-150.0,0.00041808,30]
[391709930,1760739050801,-489.0,0.00041808,2]
[391709931,1760739050811,-150.0,0.00041829,30]
[391709932,1760739050820,-2216.14701,0.0004183,11]
[391709933,1760739050830,-150.0,0.00041833,30]
[391709934,1760739050839,-150.0,0.00041839,30]
[391709935,1760739050848,-242.5,0.00041845,17]
[391709936,1760739050858,-150.0,0.00041846,30]
[391709937,1760739050868,-167.42568727,0.00041846,30]
[391709938,1760739050877,-321.39517214,0.00041846,30]
[391709939,1760739050887,-150.0,0.00041856,30]
[391709940,1760739050897,-500.0,0.00041859,120]
[391709941,1760739050906,-150.0,0.00041859,120]
[391709942,1760739050915,-2957.0,0.00041859,2]
[391709943,1760739050925,-489.0,0.00041863,2]
[391709944,1760739050935,-150.0,0.00041873,30]
[391709945,1760739050948,-150.0,0.00041886,30]
[391709946,1760739050958,-167.42568727,0.00041892,30]
[391709947,1760739050968,-321.39517214,0.00041892,30]
[391709948,1760739050978,-150.0,0.00041892,30]
[391709949,1760739050987,-150.0,0.00041892,30]
[391709950,1760739050997,-342.69495483,0.000419,120]
[391709951,1760739051007,-200.0,0.000419,22]
[391709952,1760739051017,-150.0,0.00041915,30]
[391709953,1760739051027,-489.0,0.00041918,2]
[391709954,1760739051037,-167.42568727,0.00041938,30]
[391709955,1760739051046,-321.39517214,0.00041938,30]
[391709956,1760739051055,-150.0,0.00041939,30]
[391709957,1760739051065,-150.0,0.00041942,30]
[391709958,1760739051075,-150.0,0.00041951,30]
[391709959,1760739051084,-150.0,0.00041956,30]
[391709960,1760739051094,-2957.0,0.0004196,120]
[391709961,1760739051103,-150.0,0.00041964,30]
[391709962,1760739051113,-489.0,0.00041973,2]
[391709963,1760739051123,-150.0,0.00041976,30]
[391709964,1760739051132,-1487.31,0.00041977,120]
[391709965,1760739051142,-150.0,0.00041983,30]
[391709966,1760739051151,-167.42568727,0.00041983,30]
[391709967,1760739051160,-321.39517214,0.00041983,30]
[391709968,1760739051170,-150.0,0.00041991,30]
[391709969,1760739051180,-1080.62746766,0.00041997,38]
[391709970,1760739051190,-1000.0,0.00041999,120]
[391709971,1760739051199,-922.52,0.00042,30]
[391709972,1760739051209,-150.0,0.00042,53]
[391709973,1760739051219,-150.0,0.00042,10]
[391709974,1760739051229,-150.0,0.00042018,30]
[391709975,1760739051238,-150.0,0.00042018,30]
[391709976,1760739051249,-150.0,0.00042018,30]
[391709977,1760739051258,-250.0,0.00042021,10]
[391709978,1760739051268,-489.0,0.00042028,2]
[391709979,1760739051278,-167.42568727,0.00042029,30]
[391709980,1760739051288,-321.39517214,0.00042029,30]
[391709981,1760739051297,-150.0,0.00042038,30]
[391709982,1760739051307,-150.0,0.00042044,30]
[391709983,1760739051316,-150.0,0.00042052,30]
[391709984,1760739051326,-150.0,0.0004206,30]
[391709985,1760739051335,-150.0,0.00042072,30]
[391709986,1760739051345,-167.42568727,0.00042075,30]
[391709987,1760739051355,-321.39517214,0.00042075,30]
[391709988,1760739051364,-150.0,0.00042078,30]
[391709989,1760739051374,-489.0,0.00042082,2]
[391709990,1760739051383,-150.0,0.00042094,30]
[391709991,1760739051395,-150.0,0.00042097,30]
[391709992,1760739051404,-150.0,0.00042121,30]
[391709993,1760739051414,-167.42568727,0.00042121,30]
[391709994,1760739051424,-150.0,0.00042121,30]
[391709995,1760739051434,-321.39517214,0.00042121,30]
[391709996,1760739051443,-1376.0,0.00042134,30]
[391709997,1760739051453,-534.83075301,0.00042134,30]
[391709998,1760739051463,-489.0,0.00042137,2]
[391709999,1760739051472,-150.0,0.00042144,30]
[391710000,1760739051482,-150.0,0.0004215,30]
[391710001,1760739051491,-167.42568727,0.00042167,30]
[391710002,1760739051501,-321.39517214,0.00042167,30]
[391710003,1760739051511,-150.0,0.0004218,30]
[391710004,1760739051520,-200.0,0.00042186,7]
[391710005,1760739051530,-150.0,0.0004219,30]
[391710006,1760739051539,-489.0,0.00042192,2]
[391710007,1760739051549,-150.0,0.00042203,30]
[391710008,1760739051558,-150.0,0.00042204,30]
[391710009,1760739051568,-150.0,0.00042207,30]
[391710010,1760739051577,-167.42568727,0.00042213,30]
[391710011,1760739051587,-321.39517214,0.00042213,30]
[391710012,1760739051597,-150.0,0.00042218,30]
[391710013,1760739051606,-150.0,0.00042228,30]
[391710014,1760739051616,-150.0,0.00042245,30]
[391710015,1760739051625,-489.0,0.00042247,2]
[391710016,1760739051634,-2198.0,0.00042247,7]
[391710017,1760739051644,-150.0,0.00042255,30]
[391710018,1760739051653,-150.0,0.00042259,30]
[391710019,1760739051663,-167.42568727,0.00042259,30]
[391710020,1760739051673,-321.39517214,0.00042259,30]
[391710021,1760739051682,-150.0,0.00042286,30]
[391710022,1760739051692,-150.0,0.00042288,30]
[391710023,1760739051702,-489.0,0.00042301,2]
[391710024,1760739051712,-167.42568727,0.00042305,30]
[391710025,1760739051723,-321.39517214,0.00042305,30]
[391710026,1760739051732,-3685.0,0.00042307,120]
[391710027,1760739051741,-150.0,0.00042308,30]
[391710028,1760739051751,-150.0,0.00042312,30]
[391710029,1760739051760,-150.0,0.00042317,30]
[391710030,1760739051769,-150.0,0.00042328,30]
[391710031,1760739051779,-2216.14701,0.0004233,13]
[391710032,1760739051788,-2198.0,0.00042341,120]
[391710033,1760739051798,-167.42568727,0.0004235,30]
[391710034,1760739051807,-321.39517214,0.0004235,30]
[391710035,1760739051816,-493.60143546,0.00042356,2]
[391710036,1760739051826,-150.0,0.00042361,30]
[391710037,1760739051836,-150.0,0.00042369,30]
[391710038,1760739051846,-150.0,0.00042396,30]
[391710039,1760739051856,-150.0,0.00042396,30]
[391710040,1760739051866,-150.0,0.00042396,30]
[391710041,1760739051876,-167.42568727,0.00042396,30]
[391710042,1760739051885,-150.0,0.00042396,30]
[391710043,1760739051896,-150.0,0.00042396,30]
[391710044,1760739051905,-321.39517214,0.00042396,30]
[391710045,1760739051915,-150.0,0.00042396,30]
[391710046,1760739051924,-150.0,0.00042396,30]
[391710047,1760739051934,-150.0,0.00042414,30]
[391710048,1760739051947,-167.42568727,0.00042442,30]
[391710049,1760739051957,-321.39517214,0.00042442,30]
[391710050,1760739051967,-3856.186,0.00042445,30]
[391710051,1760739051976,-150.0,0.00042451,30]
[391710052,1760739051986,-150.0,0.00042465,30]
[391710053,1760739051996,-150.0,0.00042467,30]
[391710054,1760739052006,-150.0,0.0004248,30]
[391710055,1760739052019,-150.0,0.00042485,30]
[391710056,1760739052029,-167.42568727,0.00042488,30]
[391710057,1760739052038,-321.39517214,0.00042488,30]
[391710058,1760739052047,-1000.0,0.000425,7]
[391710059,1760739052057,-150.0,0.00042505,30]
[391710060,1760739052066,-150.0,0.0004252,30]
[391710061,1760739052075,-150.0,0.00042534,30]
[391710062,1760739052085,-167.42568727,0.00042534,30]
[391710063,1760739052095,-150.0,0.00042534,30]
[391710064,1760739052105,-321.39517214,0.00042534,30]
[391710065,1760739052114,-150.0,0.00042548,30]
[391710066,1760739052124,-452.40260859,0.00042553,8]
[391710067,1760739052133,-787.35300657,0.00042555,30]
[391710068,1760739052142,-1376.0,0.00042555,30]
[391710069,1760739052152,-150.0,0.00042556,30]
[391710070,1760739052162,-150.0,0.00042565,30]
[391710071,1760739052171,-300.0,0.00042568,10]
[391710072,1760739052180,-150.0,0.00042572,30]
[391710073,1760739052190,-167.42568727,0.0004258,30]
[391710074,1760739052199,-321.39517214,0.0004258,30]
[391710075,1760739052209,-150.0,0.00042586,30]
[391710076,1760739052219,-150.0,0.00042586,30]
[391710077,1760739052228,-150.0,0.00042603,30]
[391710078,1760739052238,-150.0,0.00042613,30]
[391710079,1760739052247,-150.0,0.00042617,30]
[391710080,1760739052257,-150.0,0.00042625,30]
[391710081,1760739052267,-167.42568727,0.00042626,30]
[391710082,1760739052277,-321.39517214,0.00042626,30]
[391710083,1760739052420,-150.0,0.00042649,30]
[391710084,1760739052430,-150.0,0.00042672,30]
[391710085,1760739052440,-167.42568727,0.00042672,30]
[391710086,1760739052450,-321.39517214,0.00042672,30]
[391710087,1760739052459,-150.0,0.00042678,30]
[391710088,1760739052469,-421.66,0.00042688,120]
[391710089,1760739052479,-150.0,0.00042699,30]
[391710090,1760739052490,-150.0,0.00042699,30]
[391710091,1760739052500,-150.0,0.00042699,30]
[391710092,1760739052509,-153.0,0.000427,120]
[391710093,1760739052519,-167.42568727,0.00042718,30]
[391710094,1760739052529,-321.39517214,0.00042718,30]
[391710095,1760739052538,-150.0,0.00042721,30]
[391710096,1760739052547,-5139.0,0.00042723,120]
[391710097,1760739052557,-150.0,0.00042731,30]
[391710098,1760739052566,-150.0,0.00042733,30]
[391710099,1760739052576,-9943.4627,0.00042738,2]
[391710100,1760739052585,-151.0,0.00042738,120]
[391710101,1760739052595,-151.0,0.00042738,120]
[391710102,1760739052605,-151.0,0.00042738,120]
[391710103,1760739052615,-151.0,0.00042738,120]
[391710104,1760739052625,-151.0,0.00042738,120]
[391710105,1760739052635,-151.0,0.00042738,120]
[391710106,1760739052645,-150.0,0.0004274,30]
[391710107,1760739052655,-3594.81602736,0.00042745,15]
[391710108,1760739052665,-150.0,0.00042753,30]
[391710109,1760739052676,-167.42568727,0.00042763,30]
[391710110,1760739052686,-321.39517214,0.00042763,30]
[391710111,1760739052696,-500.0,0.00042767,30]
[391710112,1760739052706,-150.0,0.00042775,30]
[391710113,1760739052716,-150.0,0.00042782,30]
[391710114,1760739052726,-150.0,0.00042784,30]
[391710115,1760739052736,-150.0,0.00042795,30]
[391710116,1760739052746,-661.29,0.000428,120]
[391710117,1760739052756,-1000.0,0.000428,7]
[391710118,1760739052766,-1000.0,0.000428,7]
[391710119,1760739052776,-150.0,0.00042809,30]
[391710120,1760739052786,-167.42568727,0.00042809,30]
[391710121,1760739052796,-321.39517214,0.00042809,30]
[391710122,1760739052806,-500.0,0.00042812,17]
[391710123,1760739052815,-10000.0,0.00042813,63]
[391710124,1760739052825,-150.0,0.00042817,30]
[391710125,1760739052835,-150.0,0.00042829,30]
[391710126,1760739052845,-4855.0,0.0004283,2]
[391710127,1760739052854,-2216.14701,0.0004283,15]
[391710128,1760739052864,-150.0,0.00042837,30]
[391710129,1760739052874,-4352.0,0.00042847,7]
[391710130,1760739052883,-150.0,0.00042851,30]
[391710131,1760739052893,-167.42568727,0.00042855,30]
[391710132,1760739052902,-321.39517214,0.00042855,30]
[391710133,1760739052912,-150.0,0.00042864,30]
[391710134,1760739052921,-150.0,0.00042878,30]
[391710135,1760739052930,-150.0,0.00042889,30]
[391710136,1760739052941,-1075.0,0.000429,2]
[391710137,1760739052952,-1000.0,0.000429,2]
[391710138,1760739052962,-151.0,0.000429,120]
[391710139,1760739052972,-151.0,0.000429,120]
[391710140,1760739052982,-151.0,0.000429,120]
[391710141,1760739052992,-151.0,0.000429,120]
[391710142,1760739053002,-151.0,0.000429,30]
[391710143,1760739053012,-151.0,0.000429,120]
[391710144,1760739053024,-151.0,0.000429,120]
[391710145,1760739053033,-151.0,0.000429,120]
[391710146,1760739053043,-151.0,0.000429,120]
[391710147,1760739053052,-151.0,0.000429,90]
[391710148,1760739053061,-151.0,0.000429,120]
[391710149,1760739053071,-151.0,0.000429,120]
[391710150,1760739053080,-151.0,0.000429,120]
[391710151,1760739053090,-151.0,0.000429,120]
[391710152,1760739053100,-151.0,0.000429,120]
[391710153,1760739053110,-151.0,0.000429,120]
[391710154,1760739053120,-151.0,0.000429,120]
[391710155,1760739053130,-151.0,0.000429,120]